fUST/lending_fUST_20250905
["ID","MTS","AMOUNT","RATE_DAILY","PERIOD"]
[383612426,1757035838920,-500.0,0.00015027,2]
[383612427,1757035838931,-500.0,0.00015027,2]
[383612428,1757035838943,-484.19570979,0.00015028,2]
[383612429,1757035838954,-531.16810629,0.00015028,2]
[383612430,1757035838966,-192.56013248,0.00015031,2]
[383612431,1757035838976,-480.0,0.00015031,2]
[383612432,1757035838985,-480.0,0.00015031,2]
[383612433,1757035838995,-480.0,0.00015031,2]
[383612434,1757035839005,-480.0,0.00015031,2]
[383612435,1757035839015,-480.0,0.00015031,2]
[383612436,1757035839025,-480.0,0.00015031,2]
[383612437,1757035839035,-500.0,0.00015031,2]
[383612438,1757035839045,-157.0,0.00015031,2]
[383612439,1757035839056,-480.0,0.00015031,2]
[383612440,1757035839067,-480.0,0.00015031,2]
[383612441,1757035839078,-480.0,0.00015031,2]
[383612442,1757035839088,-911.49,0.00015031,2]
[383612443,1757035839101,-480.0,0.00015031,2]
[383612444,1757035839112,-480.0,0.00015031,2]
[383612445,1757035839123,-480.0,0.00015031,2]
[383612446,1757035839134,-480.0,0.00015032,2]
[383612447,1757035839144,-480.0,0.00015032,2]
[383612448,1757035839154,-604.29081918,0.00015032,2]
[383612449,1757035839164,-480.0,0.00015032,2]
[383612450,1757035839174,-319.46820256,0.00015032,2]
[383612451,1757035839185,-480.0,0.00015032,2]
[383612452,1757035839196,-480.0,0.00015032,2]
[383612453,1757035839208,-480.0,0.00015032,2]
[383612454,1757035839219,-480.0,0.00015032,2]
[383612455,1757035839230,-296.0,0.00015032,2]
[383612456,1757035839240,-157.0,0.00015032,2]
[383612457,1757035839251,-246.41919017,0.00015032,2]
[383612458,1757035839261,-157.0,0.00015032,2]
[383612459,1757035839272,-480.0,0.00015032,2]
[383612460,1757035839284,-9130.73,0.00015032,2]
[383612461,1757035839294,-480.0,0.00015032,2]
[383612462,1757035839307,-480.0,0.00015032,2]
[383612463,1757035839318,-180.0,0.00015032,2]
[383612464,1757035839328,-241.6,0.00015032,2]
[383612465,1757035839338,-480.0,0.00015032,2]
[383612466,1757035839350,-480.0,0.00015032,2]
[383612467,1757035839363,-480.0,0.00015032,2]
[383612468,1757035839375,-480.0,0.00015032,2]
[383612469,1757035839387,-480.0,0.00015032,2]
[383612470,1757035839399,-480.0,0.00015032,2]
[383612471,1757035839409,-480.0,0.00015032,2]
[383612472,1757035839419,-480.0,0.00015032,2]
[383612473,1757035839429,-480.0,0.00015032,2]
[383612474,1757035839440,-480.0,0.00015033,2]
[383612475,1757035839451,-480.0,0.00015033,2]
[383612476,1757035839462,-500.0,0.00015035,2]
[383612477,1757035839472,-480.0,0.00015036,2]
[383612478,1757035839484,-480.0,0.00015036,2]
[383612479,1757035839497,-480.0,0.00015036,2]
[383612480,1757035839507,-480.0,0.00015036,2]
[383612481,1757035839519,-480.0,0.00015036,2]
[383612482,1757035839529,-480.0,0.00015036,2]
[383612483,1757035839541,-482.54,0.00015036,2]
[383612484,1757035839552,-480.0,0.00015036,2]
[383612485,1757035839567,-480.0,0.00015036,2]
[383612486,1757035839585,-480.0,0.00015036,2]
[383612487,1757035839596,-480.0,0.00015036,2]
[383612488,1757035839607,-480.0,0.00015036,2]
[383612489,1757035839618,-480.0,0.00015036,2]
[383612490,1757035839639,-604.56241249,0.00015036,2]
[383612491,1757035839651,-480.0,0.00015036,2]
[383612492,1757035839662,-480.0,0.00015036,2]
[383612493,1757035839674,-480.0,0.00015036,2]
[383612494,1757035839686,-480.0,0.00015036,2]
[383612495,1757035839698,-480.0,0.00015036,2]
[383612496,1757035839709,-480.0,0.00015036,2]
[383612497,1757035839720,-480.0,0.00015036,2]
[383612498,1757035839731,-480.0,0.00015036,2]
[383612499,1757035839742,-480.0,0.00015036,2]
[383612500,1757035839753,-260.36097972,0.00015036,2]
[383612501,1757035839765,-480.0,0.00015036,2]
[383612502,1757035839779,-151.0,0.00015036,2]
[383612503,1757035839790,-480.0,0.00015036,2]
[383612504,1757035839801,-161.64,0.00015036,2]
[383612505,1757035839812,-480.0,0.00015036,2]
[383612506,1757035839823,-151.0,0.00015036,2]
[383612510,1757035839995,-151.0,0.00015036,2]
[383612512,1757035840011,-480.0,0.00015036,2]
[383612514,1757035840021,-151.0,0.00015036,2]
[383612516,1757035840030,-151.0,0.00015036,2]
[383612518,1757035840040,-480.0,0.00015036,2]
[383612520,1757035840049,-151.0,0.00015036,2]
[383612522,1757035840059,-151.0,0.00015036,2]
[383612524,1757035840069,-480.0,0.00015036,2]
[383612526,1757035840079,-480.0,0.00015036,2]
[383612527,1757035840089,-480.0,0.00015036,2]
[383612528,1757035840098,-480.0,0.00015036,2]
[383612529,1757035840108,-247.481536,0.00015036,2]
[383612530,1757035840117,-151.0,0.00015036,2]
[383612531,1757035840127,-480.44560732,0.00015036,2]
[383612532,1757035840136,-151.0,0.00015036,2]
[383612533,1757035840147,-480.0,0.00015036,2]
[383612534,1757035840156,-151.0,0.00015036,2]
[383612535,1757035840165,-480.0,0.00015036,2]
[383612536,1757035840175,-480.73411835,0.00015036,2]
[383612537,1757035840184,-480.0,0.00015036,2]
[383612538,1757035840194,-480.0,0.00015036,2]
[383612539,1757035840203,-480.0,0.00015036,2]
[383612540,1757035840213,-480.0,0.00015036,2]
[383612541,1757035840222,-151.0,0.00015036,2]
[383612542,1757035840231,-480.0,0.00015036,2]
[383612543,1757035840241,-151.0,0.00015036,2]
[383612544,1757035840251,-480.0,0.00015036,2]
[383612545,1757035840260,-480.0,0.00015036,2]
[383612546,1757035840270,-373.04717275,0.00015036,2]
[383612547,1757035840280,-208.32049847,0.00015036,2]
[383612548,1757035840290,-481.02390499,0.00015036,2]
[383612549,1757035840300,-480.0,0.00015036,2]
[383612550,1757035840312,-480.0,0.00015036,2]
[383612551,1757035840321,-480.0,0.00015036,2]
[383612552,1757035840331,-480.0,0.00015036,2]
[383612553,1757035840340,-480.0,0.00015036,2]
[383612554,1757035840350,-480.0,0.00015036,2]
[383612555,1757035840360,-480.0,0.00015036,2]
[383612556,1757035840371,-480.0,0.00015036,2]
[383612557,1757035840381,-500.0,0.00015036,2]
[383612558,1757035840392,-500.0,0.00015036,2]
[383612559,1757035840401,-500.0,0.00015036,2]
[383612560,1757035840411,-500.0,0.00015036,2]
[383612561,1757035840420,-500.0,0.00015036,2]
[383612562,1757035840430,-500.0,0.00015036,2]
[383612563,1757035840439,-500.0,0.00015036,2]
[383612564,1757035840449,-480.0,0.00015036,2]
[383612565,1757035840459,-480.0,0.00015036,2]
[383612566,1757035840469,-480.0,0.00015036,2]
[383612567,1757035840479,-480.0,0.00015036,2]
[383612568,1757035840490,-480.0,0.00015036,2]
[383612569,1757035840500,-249.64307821,0.00015036,2]
[383612570,1757035840511,-480.0,0.00015036,2]
[383612571,1757035840521,-153.73572,0.00015036,2]
[383612572,1757035840531,-480.0,0.00015036,2]
[383612573,1757035840543,-482.77117779,0.00015036,2]
[383612574,1757035840552,-487.00521783,0.00015036,2]
[383612575,1757035840562,-481.28218176,0.00015036,2]
[383612576,1757035840571,-481.73385312,0.00015036,2]
[383612577,1757035840581,-480.7210916,0.00015036,2]
[383612578,1757035840590,-480.25529325,0.00015036,2]
[383612579,1757035840599,-151.0,0.00015036,2]
[383612580,1757035840608,-151.0,0.00015036,2]
[383612581,1757035840618,-480.0,0.00015036,2]
[383612582,1757035840627,-480.0,0.00015036,2]
[383612583,1757035840637,-151.121883,0.00015036,2]
[383612584,1757035840646,-480.0,0.00015036,2]
[383612585,1757035840656,-181.157472,0.00015036,2]
[383612586,1757035840665,-480.0,0.00015036,2]
[383612587,1757035840675,-480.0,0.00015036,2]
[383612588,1757035840684,-480.0,0.00015036,2]
[383612589,1757035840693,-151.0,0.00015036,2]
[383612590,1757035840703,-480.0,0.00015036,2]
[383612591,1757035840712,-151.0,0.00015036,2]
[383612592,1757035840721,-151.0,0.00015036,2]
[383612593,1757035840730,-151.0,0.00015036,2]
[383612594,1757035840740,-220.96856204,0.00015036,2]
[383612595,1757035840749,-151.0,0.00015036,2]
[383612596,1757035840759,-151.0,0.00015036,2]
[383612597,1757035840770,-151.0,0.00015036,2]
[383612598,1757035840780,-151.0,0.00015036,2]
[383612599,1757035840789,-151.0,0.00015036,2]
[383612600,1757035840798,-151.0,0.00015036,2]
[383612601,1757035840808,-151.0,0.00015036,2]
[383612602,1757035840817,-151.0,0.00015036,2]
[383612603,1757035840826,-151.0,0.00015036,2]
[383612604,1757035840835,-151.0,0.00015036,2]
[383612605,1757035840845,-151.0,0.00015036,2]
[383612606,1757035840855,-220.202256,0.00015036,2]
[383612607,1757035840864,-151.0,0.00015036,2]
[383612608,1757035840873,-151.0,0.00015036,2]
[383612609,1757035840883,-151.0,0.00015036,2]
[383612610,1757035840892,-151.0,0.00015036,2]
[383612611,1757035840903,-151.0,0.00015036,2]
[383612612,1757035840912,-151.0,0.00015036,2]
[383612613,1757035840922,-151.0,0.00015036,2]
[383612614,1757035840931,-151.0,0.00015036,2]
[383612615,1757035840942,-151.0,0.00015036,2]
[383612616,1757035840953,-151.0,0.00015036,2]
[383612617,1757035840963,-151.0,0.00015036,2]
[383612618,1757035840973,-151.464156,0.00015036,2]
[383612619,1757035840985,-151.0,0.00015036,2]
[383612620,1757035840995,-151.0,0.00015036,2]
[383612621,1757035841004,-480.0,0.00015036,2]
[383612622,1757035841014,-518.21017361,0.00015036,2]
[383612623,1757035841023,-151.0,0.00015036,2]
[383612624,1757035841033,-151.0,0.00015036,2]
[383612625,1757035841043,-151.0,0.00015036,2]
[383612626,1757035841054,-151.0,0.00015036,2]
[383612627,1757035841063,-495.27360896,0.00015036,2]
[383612628,1757035841072,-151.0,0.00015036,2]
[383612629,1757035841082,-151.0,0.00015036,2]
[383612630,1757035841092,-151.0,0.00015036,2]
[383612631,1757035841101,-151.0,0.00015036,2]
[383612632,1757035841111,-151.0,0.00015036,2]
[383612633,1757035841122,-151.0,0.00015036,2]
[383612634,1757035841133,-151.0,0.00015036,2]
[383612635,1757035841143,-153.172244,0.00015036,2]
[383612636,1757035841154,-151.0,0.00015036,2]
[383612637,1757035841164,-151.0,0.00015036,2]
[383612638,1757035841173,-482.00255633,0.00015036,2]
[383612639,1757035841184,-211423.07979031,0.00015036,2]
[383612640,1757035841194,-500.0,0.00015073,2]
[383612641,1757035841205,-500.0,0.00015073,2]
[383612642,1757035841215,-500.0,0.00015073,2]
[383612643,1757035841224,-500.0,0.00015073,2]
[383612644,1757035841234,-500.0,0.00015073,2]
[383612645,1757035841243,-17515.5322934,0.00015087,2]
[383612646,1757035841254,-163.81908211,0.00015133,2]
[383612647,1757035841263,-480.0,0.00015133,2]
[383612648,1757035841273,-480.0,0.00015133,2]
[383612649,1757035841282,-480.0,0.00015133,2]
[383612650,1757035841291,-554.32,0.00015133,2]
[383612651,1757035841302,-514.12,0.00015133,2]
[383612652,1757035841313,-555.53,0.00015133,2]
[383612653,1757035841323,-480.0,0.00015133,2]
[383612654,1757035841331,-480.0,0.00015133,2]
[383612655,1757035841342,-480.0,0.00015133,2]
[383612656,1757035841353,-480.0,0.00015133,2]
[383612657,1757035841364,-480.0,0.00015133,2]
[383612658,1757035841374,-480.0,0.00015133,2]
[383612659,1757035841385,-480.0,0.00015133,2]
[383612660,1757035841395,-480.0,0.00015133,2]
[383612661,1757035841404,-151.0,0.00015135,2]
[383612662,1757035841414,-480.0,0.00015135,2]
[383612663,1757035841424,-480.0,0.00015135,2]
[383612664,1757035841434,-153.302851,0.00015135,2]
[383612665,1757035841443,-480.0,0.00015135,2]
[383612666,1757035841454,-480.0,0.00015135,2]
[383612667,1757035841464,-151.0,0.00015135,2]
[383612668,1757035841473,-151.0,0.00015135,2]
[383612669,1757035841483,-151.0,0.00015135,2]
[383612670,1757035841492,-151.0,0.00015135,2]
[383612671,1757035841502,-151.0,0.00015135,2]
[383612672,1757035841512,-151.0,0.00015135,2]
[383612673,1757035841522,-151.0,0.00015135,2]
[383612674,1757035841531,-163.974312,0.00015135,2]
[383612675,1757035841540,-151.0,0.00015135,2]
[383612676,1757035841550,-151.0,0.00015135,2]
[383612677,1757035841561,-151.0,0.00015135,2]
[383612678,1757035841574,-151.0,0.00015135,2]
[383612679,1757035841584,-151.0,0.00015135,2]
[383612680,1757035841595,-151.0,0.00015135,2]
[383612681,1757035841605,-151.0,0.00015135,2]
[383612682,1757035841616,-1513.28489664,0.00015135,2]
[383612683,1757035841625,-500.0,0.00015173,2]
[383612684,1757035841635,-1001.86,0.00015302,2]
[383612685,1757035841646,-481.59878844,0.00015302,2]
[383612686,1757035841656,-480.0,0.00015303,2]
[383612687,1757035841666,-480.0,0.00015303,2]
[383612688,1757035841676,-603.31964346,0.00015303,2]
[383612689,1757035841687,-480.0,0.00015303,2]
[383612690,1757035841696,-480.0,0.00015303,2]
[383612691,1757035841706,-500.0,0.00015305,2]
[383612692,1757035841715,-180.0,0.00015305,2]
[383612693,1757035841725,-480.0,0.00015305,2]
[383612694,1757035841735,-395.6423415,0.00015305,2]
[383612695,1757035841744,-480.0,0.00015305,2]
[383612696,1757035841754,-480.0,0.00015305,2]
[383612697,1757035841763,-911.49,0.00015305,2]
[383612698,1757035841774,-480.0,0.00015305,2]
[383612699,1757035841785,-480.0,0.00015305,2]
[383612700,1757035841795,-480.0,0.00015305,2]
[383612701,1757035841804,-157.0,0.00015306,2]
[383612702,1757035841814,-296.0,0.00015306,2]
[383612703,1757035841825,-480.0,0.00015306,2]
[383612704,1757035841835,-480.0,0.00015306,2]
[383612705,1757035841845,-9130.73,0.00015306,2]
[383612706,1757035841854,-151.0,0.00015306,2]
[383612707,1757035841864,-480.0,0.00015306,2]
[383612708,1757035841874,-164.34718,0.00015306,2]
[383612709,1757035841883,-480.0,0.00015306,2]
[383612710,1757035841893,-480.0,0.00015306,2]
[383612711,1757035841903,-151.0,0.00015306,2]
[383612712,1757035841912,-151.0,0.00015306,2]
[383612713,1757035841923,-153.015766,0.00015306,2]
[383612714,1757035841933,-151.0,0.00015306,2]
[383612715,1757035841943,-151.0,0.00015306,2]
[383612716,1757035841953,-297.98788009,0.00015306,2]
[383612717,1757035841962,-500.0,0.00015309,2]
[383612718,1757035841971,-480.0,0.0001531,2]
[383612719,1757035841982,-175.541387,0.00015408,2]
[383612720,1757035841991,-1676.15569017,0.0001548,2]
[383612721,1757035842001,-300.0,0.00015542,2]
[383612722,1757035842011,-300.0,0.00015542,2]
[383612723,1757035842021,-300.0,0.00015542,2]
[383612724,1757035842031,-300.0,0.00015542,2]
[383612725,1757035842040,-300.0,0.00015542,2]
[383612726,1757035842052,-300.0,0.00015542,2]
[383612727,1757035842061,-300.0,0.00015542,2]
[383612728,1757035842072,-300.0,0.00015542,2]
[383612729,1757035842084,-300.0,0.00015542,2]
[383612730,1757035842094,-300.0,0.00015542,2]
[383612731,1757035842105,-300.0,0.00015542,2]
[383612732,1757035842115,-300.0,0.00015542,2]
[383612733,1757035842125,-300.0,0.00015542,2]
[383612734,1757035842135,-300.0,0.00015542,2]
[383612735,1757035842145,-300.0,0.00015542,2]
[383612736,1757035842154,-151.0,0.00015542,2]
[383612737,1757035842163,-151.0,0.00015542,2]
[383612738,1757035842173,-151.0,0.00015542,2]
[383612739,1757035842183,-207.153874,0.00015542,2]
[383612740,1757035842192,-151.0,0.00015542,2]
[383612741,1757035842202,-151.0,0.00015542,2]
[383612742,1757035842212,-151.0,0.00015542,2]
[383612743,1757035842222,-151.0,0.00015542,2]
[383612744,1757035842232,-151.0,0.00015542,2]
[383612745,1757035842241,-151.0,0.00015542,2]
[383612746,1757035842251,-212.473958,0.00015542,2]
[383612747,1757035842262,-1001.86,0.00015576,2]
[383612748,1757035842273,-480.0,0.00015577,2]
[383612749,1757035842282,-480.0,0.00015577,2]
[383612750,1757035842292,-480.0,0.00015577,2]
[383612751,1757035842304,-480.0,0.00015577,2]
[383612752,1757035842315,-500.0,0.00015579,2]
[383612753,1757035842326,-480.0,0.00015579,2]
[383612754,1757035842335,-480.0,0.00015579,2]
[383612755,1757035842345,-480.0,0.00015579,2]
[383612756,1757035842355,-911.49,0.00015579,2]
[383612757,1757035842365,-480.0,0.00015579,2]
[383612758,1757035842375,-480.0,0.00015579,2]
[383612759,1757035842386,-480.0,0.00015579,2]
[383612760,1757035842399,-230.6153923,0.0001558,2]
[383612761,1757035842409,-480.0,0.0001558,2]
[383612762,1757035842418,-480.0,0.0001558,2]
[383612763,1757035842428,-9130.73,0.0001558,2]
[383612764,1757035842437,-480.0,0.0001558,2]
[383612765,1757035842447,-480.0,0.0001558,2]
[383612766,1757035842456,-480.0,0.0001558,2]
[383612767,1757035842465,-151.0,0.00015584,2]
[383612768,1757035842474,-151.0,0.00015584,2]
[383612769,1757035842484,-151.0,0.00015584,2]
[383612770,1757035842494,-151.0,0.00015584,2]
[383612771,1757035842503,-151.0,0.00015584,2]
[383612772,1757035842513,-160.807689,0.00015584,2]
[383612773,1757035842522,-511.56895741,0.00015621,2]
[383612774,1757035842531,-1001.86,0.0001585,2]
[383612775,1757035842541,-480.0,0.00015851,2]
[383612776,1757035842550,-480.0,0.00015851,2]
[383612777,1757035842560,-480.0,0.00015851,2]
[383612778,1757035842569,-480.0,0.00015851,2]
[383612779,1757035842579,-600.0,0.00015852,2]
[383612780,1757035842589,-500.0,0.00015853,2]
[383612781,1757035842598,-480.0,0.00015853,2]
[383612782,1757035842607,-480.0,0.00015853,2]
[383612783,1757035842618,-480.0,0.00015853,2]
[383612784,1757035842628,-911.49,0.00015853,2]
[383612785,1757035842638,-480.0,0.00015853,2]
[383612786,1757035842648,-480.0,0.00015853,2]
[383612787,1757035842657,-480.0,0.00015853,2]
[383612788,1757035842667,-480.0,0.00015854,2]
[383612789,1757035842676,-480.0,0.00015854,2]
[383612790,1757035842686,-9130.73,0.00015854,2]
[383612791,1757035842696,-151.0,0.00015854,2]
[383612792,1757035842705,-480.0,0.00015854,2]
[383612793,1757035842715,-480.0,0.00015854,2]
[383612794,1757035842724,-480.0,0.00015854,2]
[383612795,1757035842734,-151.0,0.00015854,2]
[383612796,1757035842743,-151.0,0.00015854,2]
[383612797,1757035842753,-151.0,0.00015856,2]
[383612798,1757035842762,-253.760736,0.00015856,2]
[383612799,1757035842772,-1676.15569017,0.00016028,2]
[383612800,1757035842781,-1001.86,0.00016124,2]
[383612801,1757035842791,-480.0,0.00016125,2]
[383612802,1757035842800,-480.0,0.00016125,2]
[383612803,1757035842810,-480.0,0.00016125,2]
[383612804,1757035842819,-480.0,0.00016125,2]
[383612805,1757035842829,-500.0,0.00016127,2]
[383612806,1757035842839,-480.0,0.00016127,2]
[383612807,1757035842849,-151.0,0.00016127,2]
[383612808,1757035842858,-151.0,0.00016127,2]
[383612809,1757035842867,-480.0,0.00016127,2]
[383612810,1757035842877,-307.18,0.00016127,2]
[383612811,1757035842887,-911.49,0.00016127,2]
[383612812,1757035842897,-480.0,0.00016127,2]
[383612813,1757035842907,-561.25271103,0.00016127,2]
[383612814,1757035842917,-551.93198619,0.00016127,2]
[383612815,1757035842926,-486.02,0.00016128,2]
[383612816,1757035842936,-151.0,0.00016128,2]
[383612817,1757035842946,-151.0,0.00016128,2]
[383612818,1757035842955,-151.0,0.00016128,2]
[383612819,1757035842965,-9130.73,0.00016128,2]
[383612820,1757035842975,-353.13,0.00016128,2]
[383612821,1757035842985,-480.0,0.00016128,2]
[383612822,1757035842995,-565.74816236,0.00016128,2]
[383612823,1757035843005,-151.0,0.00016228,2]
[383612824,1757035843014,-151.0,0.00016228,2]
[383612825,1757035843024,-151.0,0.00016228,2]
[383612826,1757035843034,-151.0,0.00016228,2]
[383612827,1757035843044,-151.0,0.00016228,2]
[383612828,1757035843054,-151.0,0.00016228,2]
[383612829,1757035843064,-151.0,0.00016228,2]
[383612830,1757035843074,-609.88155162,0.00016329,2]
[383612831,1757035843084,-1001.86,0.00016398,2]
[383612832,1757035843095,-492.2,0.00016399,2]
[383612833,1757035843105,-480.0,0.00016399,2]
[383612834,1757035843115,-480.0,0.00016399,2]
[383612835,1757035843125,-480.0,0.00016399,2]
[383612836,1757035843136,-911.49,0.00016401,2]
[383612837,1757035843147,-322.94683691,0.00016401,2]
[383612838,1757035843157,-9130.73,0.00016402,2]
[383612839,1757035843168,-420.0,0.00016433,2]
[383612840,1757035843178,-411.0,0.00016433,2]
[383612841,1757035843188,-420.0,0.00016433,2]
[383612842,1757035843198,-189.74994499,0.00016438,2]
[383612843,1757035843207,-153.898817,0.00016438,2]
[383612844,1757035843217,-557.0,0.00016517,2]
[383612845,1757035843227,-1676.15569017,0.00016576,2]
[383612846,1757035843348,-1001.86,0.00016672,2]
[383612847,1757035843358,-911.49,0.00016675,2]
[383612848,1757035843369,-9130.73,0.00016676,2]
[383612849,1757035843379,-151.0,0.00016676,2]
[383612850,1757035843389,-151.0,0.00016676,2]
[383612851,1757035843400,-151.0,0.00016676,2]
[383612852,1757035843413,-1001.86,0.00016946,2]
[383612853,1757035843423,-911.49,0.00016949,2]
[383612854,1757035843433,-9130.73,0.0001695,2]
[383612855,1757035843443,-151.0,0.0001695,2]
[383612856,1757035843453,-151.0,0.00016953,2]
[383612857,1757035843464,-151.0,0.00016953,2]
[383612858,1757035843474,-151.0,0.00016953,2]
[383612859,1757035843484,-151.0,0.00016953,2]
[383612860,1757035843494,-3908.2435257,0.00016998,2]
[383612861,1757035843504,-232.93421481,0.00017058,2]
[383612862,1757035843513,-160.0,0.00017058,2]
[383612863,1757035843523,-530.40833076,0.00017058,2]
[383612864,1757035843533,-846.4110323,0.00017058,2]
[383612865,1757035843543,-217.5338025,0.00017058,2]
[383612866,1757035843552,-417.15472785,0.00017058,2]
[383612867,1757035843562,-203.15181488,0.00017059,2]
[383612868,1757035843572,-160.0,0.0001706,2]
[383612869,1757035843583,-1676.15569017,0.00017124,2]
[383612870,1757035843593,-1001.86,0.0001722,2]
[383612871,1757035843603,-911.49,0.00017223,2]
[383612872,1757035843615,-9130.73,0.00017224,2]
[383612873,1757035843626,-151.0,0.00017324,2]
[383612874,1757035843636,-151.0,0.00017324,2]
[383612875,1757035843646,-239.591236,0.00017324,2]
[383612876,1757035843657,-872.0470037,0.00017425,2]
[383612877,1757035843667,-720.0,0.00017437,2]
[383612878,1757035843676,-631.10808172,0.00017454,2]
[383612879,1757035843686,-1001.86,0.00017494,2]
[383612880,1757035843696,-911.49,0.00017497,2]
[383612881,1757035843706,-9130.73,0.00017498,2]
[383612882,1757035843715,-1001.86,0.00017768,2]
[383612883,1757035843725,-911.49,0.00017771,2]
[383612884,1757035843735,-9130.73,0.00017772,2]
[383612885,1757035843745,-587.0,0.00017985,2]
[383612886,1757035843754,-294.0,0.00017985,2]
[383612887,1757035843763,-1001.86,0.00018042,2]
[383612888,1757035843773,-911.49,0.00018045,2]
[383612889,1757035843783,-9130.73,0.00018046,2]
[383612890,1757035843792,-151.0,0.00018049,2]
[383612891,1757035843802,-151.0,0.00018049,2]
[383612892,1757035843811,-173.435424,0.00018049,2]
[383612893,1757035843821,-1001.86,0.00018316,2]
[383612894,1757035843831,-911.49,0.00018319,2]
[383612895,1757035843841,-9130.73,0.0001832,2]
[383612896,1757035843851,-1001.86,0.0001859,2]
[383612897,1757035843862,-911.49,0.00018593,2]
[383612898,1757035843871,-9130.73,0.00018594,2]
[383612899,1757035843881,-250.0,0.00018619,2]
[383612900,1757035843891,-1001.86,0.00018864,2]
[383612901,1757035843901,-911.49,0.00018867,2]
[383612902,1757035843912,-9130.73,0.00018868,2]
[383612903,1757035843922,-1001.86,0.00019138,2]
[383612904,1757035843932,-911.49,0.00019141,2]
[383612905,1757035843942,-9130.73,0.00019142,2]
[383612906,1757035843952,-864.0,0.00019181,20]
[383612907,1757035843963,-1001.86,0.00019412,2]
[383612908,1757035843973,-911.49,0.00019415,2]
[383612909,1757035843983,-9130.73,0.00019416,2]
[383612910,1757035843993,-823.0,0.00019683,2]
[383612911,1757035844003,-1001.86,0.00019686,2]
[383612912,1757035844013,-911.49,0.00019689,2]
[383612913,1757035844023,-9130.73,0.0001969,2]
[383612914,1757035844035,-1000.0,0.000198,15]
[383612915,1757035844045,-4026.0,0.00019853,2]
[383612916,1757035844057,-7284.35684021,0.000199,2]
[383612917,1757035844067,-1001.86,0.0001996,2]
[383612918,1757035844076,-911.49,0.00019963,2]
[383612919,1757035844087,-9130.73,0.00019964,2]
[383612920,1757035844096,-631.10808172,0.00019979,2]
[383612921,1757035844107,-633.0,0.00019996,2]
[383612922,1757035844118,-2153.0,0.00019996,2]
[383612923,1757035844128,-253.44770256,0.00020016,2]
[383612924,1757035844138,-181.08010149,0.00020016,2]
[383612925,1757035844149,-11747.57106515,0.00020016,2]
[383612926,1757035844159,-151.0,0.00020016,2]
[383612927,1757035844169,-151.0,0.00020016,2]
[383612928,1757035844180,-514.61871079,0.00020016,2]
[383612929,1757035844189,-151.0,0.00020016,2]
[383612930,1757035844198,-151.0,0.00020016,2]
[383612931,1757035844208,-151.0,0.00020016,2]
[383612932,1757035844217,-151.0,0.00020016,2]
[383612933,1757035844227,-151.0,0.00020016,2]
[383612934,1757035844236,-151.0,0.00020016,2]
[383612935,1757035844245,-151.0,0.00020016,2]
[383612936,1757035844254,-151.0,0.00020016,2]